fUST/lending_fUST_20241018
["ID","MTS","AMOUNT","RATE_DAILY","PERIOD"]
[340446242,1729259438199,-151.0,0.00015,2]
[340446243,1729259438209,-151.0,0.00015,2]
[340446244,1729259438223,-151.0,0.00015,2]
[340446245,1729259438232,-151.0,0.00015,2]
[340446246,1729259438242,-151.0,0.00015,2]
[340446247,1729259438252,-151.0,0.00015,2]
[340446249,1729259438263,-151.0,0.00015,2]
[340446251,1729259438273,-256.828909,0.00015,2]
[340446252,1729259438283,-256.828905,0.00015,2]
[340446253,1729259438294,-225.975834,0.00015,2]
[340446254,1729259438303,-225.975842,0.00015,2]
[340446255,1729259438314,-5000.0,0.00015,2]
[340446257,1729259438326,-293.56288,0.0001501,2]
[340446259,1729259438335,-500.0,0.0001501,2]
[340446261,1729259438345,-420.0,0.00015055,2]
[340446263,1729259438355,-1000.0,0.00015079,2]
[340446265,1729259438365,-88888.0,0.00015079,2]
[340446267,1729259438376,-259.906908,0.000151,2]
[340446269,1729259438386,-259.906908,0.000151,2]
[340446271,1729259438396,-151.0,0.000151,2]
[340446273,1729259438406,-151.0,0.000151,2]
[340446275,1729259438415,-151.0,0.000151,2]
[340446277,1729259438426,-151.0,0.000151,2]
[340446280,1729259438436,-500.0,0.00015157,2]
[340446282,1729259438445,-500.0,0.00015157,2]
[340446284,1729259438455,-500.0,0.00015157,2]
[340446286,1729259438465,-226.5617015,0.00015157,2]
[340446288,1729259438475,-16272.0533984,0.00015158,2]
[340446290,1729259438485,-14886.76916462,0.00015158,2]
[340446396,1729259998853,263.1,0.00027,60]
[340446399,1729260031546,263.0,0.00027,60]
[340446435,1729260631766,-6853.53405048,0.00013431,2]
[340446437,1729260631780,-194.338631,0.00013531,2]
[340446439,1729260631790,-250.0,0.00013699,2]
[340446441,1729260631800,-194.338631,0.00013884,2]
[340446443,1729260631810,-1437.52,0.000141,2]
[340446445,1729260631821,-194.338631,0.00014236,2]
[340446447,1729260631831,-300.0,0.0001431,2]
[340446449,1729260631843,-300.0,0.00014311,2]
[340446451,1729260631854,-166.27183719,0.00014744,2]
[340446453,1729260631865,-3589.38782164,0.00014788,2]
[340446455,1729260631874,-305.51999321,0.00014799,2]
[340446457,1729260631883,-305.51999321,0.00014822,2]
[340446459,1729260631894,-305.51999321,0.00014844,2]
[340446461,1729260631903,-305.51999321,0.00014867,2]
[340446463,1729260631913,-1000.0,0.00014879,2]
[340446465,1729260631923,-660.20310931,0.00014888,2]
[340446467,1729260631933,-17180.0734802,0.00014888,2]
[340446468,1729260631943,-26561.4264994,0.00014888,2]
[340446471,1729260631953,-305.51999321,0.00014889,2]
[340446473,1729260631963,-641.78,0.00014898,2]
[340446475,1729260631972,-151.0,0.00014898,2]
[340446477,1729260631982,-151.0,0.00014898,2]
[340446479,1729260631993,-151.0,0.00014898,2]
[340446481,1729260632004,-151.0,0.00014898,2]
[340446483,1729260632013,-242.263949,0.00014898,2]
[340446484,1729260632023,-242.263949,0.00014898,2]
[340446486,1729260632034,-151.0,0.00014898,2]
[340446488,1729260632045,-275.54549,0.00014898,2]
[340446490,1729260632055,-196.685843,0.00014898,2]
[340446492,1729260632065,-196.685843,0.00014898,2]
[340446494,1729260632075,-70806.52836159,0.00014898,2]
[340446498,1729260632099,-11539.19165338,0.00014898,2]
[340446500,1729260632111,-1592.46823405,0.00014898,2]
[340446636,1729260645954,-4768.096,0.00014312,2]
[340446637,1729260645964,-151.0,0.00014898,2]
[340446638,1729260645975,-4949.81175098,0.00014898,2]
[340446639,1729260645986,-17180.0734802,0.00014958,2]
[340446641,1729260645997,-26561.4264994,0.00014958,2]
[340446642,1729260646007,-500.0,0.00014958,2]
[340446643,1729260646017,-500.0,0.00014958,2]
[340446644,1729260646027,-191.84018906,0.00014958,2]
[340446645,1729260646036,-370.51560138,0.00014958,2]
[340446646,1729260646046,-500.0,0.00014958,2]
[340446647,1729260646058,-240.0,0.00014958,2]
[340446648,1729260646067,-500.0,0.00014958,2]
[340446649,1729260646077,-500.0,0.00014958,2]
[340446650,1729260646088,-500.0,0.00014958,2]
[340446651,1729260646099,-500.0,0.00014958,2]
[340446652,1729260646108,-500.0,0.00014958,2]
[340446653,1729260646119,-500.0,0.00014958,2]
[340446654,1729260646129,-500.0,0.00014958,2]
[340446655,1729260646140,-500.0,0.00014958,2]
[340446656,1729260646151,-500.0,0.00014958,2]
[340446657,1729260646162,-500.0,0.00014958,2]
[340446658,1729260646171,-500.0,0.00014958,2]
[340446659,1729260646184,-500.0,0.00014958,2]
[340446660,1729260646195,-500.0,0.00014958,2]
[340446661,1729260646205,-500.0,0.00014958,2]
[340446662,1729260646214,-500.0,0.00014958,2]
[340446663,1729260646223,-500.0,0.00014958,2]
[340446664,1729260646234,-436.63497836,0.00014958,2]
[340446665,1729260646245,-500.0,0.00014958,2]
[340446666,1729260646256,-500.0,0.00014958,2]
[340446667,1729260646265,-500.0,0.00014958,2]
[340446668,1729260646276,-500.0,0.00014958,2]
[340446669,1729260646285,-500.0,0.00014958,2]
[340446670,1729260646296,-500.0,0.00014958,2]
[340446671,1729260646320,-500.0,0.00014958,2]
[340446672,1729260646331,-500.0,0.00014958,2]
[340446673,1729260646341,-500.0,0.00014958,2]
[340446674,1729260646351,-500.0,0.00014958,2]
[340446675,1729260646374,-500.0,0.00014958,2]
[340446676,1729260646386,-151.0,0.00014958,2]
[340446677,1729260646397,-151.0,0.00014958,2]
[340446678,1729260646408,-151.0,0.00014958,2]
[340446679,1729260646418,-151.0,0.00014958,2]
[340446680,1729260646429,-151.0,0.00014958,2]
[340446681,1729260646440,-151.0,0.00014958,2]
[340446682,1729260646452,-151.0,0.00014958,2]
[340446683,1729260646462,-151.0,0.00014958,2]
[340446684,1729260646473,-26561.4264994,0.00014959,2]
[340446685,1729260646484,-151.0,0.00014959,2]
[340446686,1729260646496,-151.0,0.00014959,2]
[340446687,1729260646506,-151.0,0.00014959,2]
[340446688,1729260646517,-151.0,0.00014959,2]
[340446689,1729260646529,-151.0,0.00014959,2]
[340446690,1729260646540,-151.0,0.00014959,2]
[340446691,1729260646551,-151.0,0.00014959,2]
[340446692,1729260646562,-17180.0734802,0.00014968,2]
[340446693,1729260646572,-151.0,0.00014968,2]
[340446694,1729260646582,-151.0,0.00014968,2]
[340446695,1729260646593,-265.970146,0.00014968,2]
[340446696,1729260646603,-265.970146,0.00014968,2]
[340446697,1729260646614,-265.970146,0.00014968,2]
[340446698,1729260646625,-265.970146,0.00014968,2]
[340446699,1729260646636,-151.0,0.00014968,2]
[340446700,1729260646646,-151.0,0.00014968,2]
[340446701,1729260646656,-151.0,0.00014968,2]
[340446702,1729260646666,-151.0,0.00014968,2]
[340446703,1729260646678,-151.0,0.00014968,2]
[340446704,1729260646687,-151.0,0.00014968,2]
[340446705,1729260646698,-151.022685,0.00014968,2]
[340446706,1729260646708,-151.0,0.00014968,2]
[340446707,1729260646718,-151.0,0.00014968,2]
[340446708,1729260646729,-151.0,0.00014968,2]
[340446709,1729260646739,-151.0,0.00014968,2]
[340446710,1729260646749,-151.0,0.00014968,2]
[340446711,1729260646760,-151.0,0.00014968,2]
[340446712,1729260646771,-151.0,0.00014968,2]
[340446713,1729260646783,-151.0,0.00014968,2]
[340446714,1729260646794,-151.0,0.00014968,2]
[340446715,1729260646806,-151.0,0.00014968,2]
[340446716,1729260646815,-300.467994,0.00014968,2]
[340446717,1729260646826,-151.0,0.00014968,2]
[340446718,1729260646838,-151.0,0.00014968,2]
[340446719,1729260646849,-151.0,0.00014968,2]
[340446720,1729260646859,-151.0,0.00014968,2]
[340446721,1729260646870,-151.0,0.00014968,2]
[340446722,1729260646880,-151.0,0.00014968,2]
[340446723,1729260646890,-216.755712,0.00014968,2]
[340446724,1729260646900,-151.0,0.00014968,2]
[340446725,1729260646911,-151.0,0.00014968,2]
[340446726,1729260646921,-242.263949,0.00014968,2]
[340446727,1729260646931,-242.263949,0.00014968,2]
[340446728,1729260646941,-242.263949,0.00014968,2]
[340446729,1729260646953,-242.263949,0.00014968,2]
[340446730,1729260646968,-151.0,0.00014968,2]
[340446731,1729260646980,-151.0,0.00014968,2]
[340446732,1729260646991,-151.0,0.00014968,2]
[340446733,1729260647002,-196.685843,0.00014968,2]
[340446734,1729260647012,-196.685843,0.00014968,2]
[340446735,1729260647023,-196.685843,0.00014968,2]
[340446736,1729260647033,-196.685843,0.00014968,2]
[340446737,1729260647045,-196.685843,0.00014968,2]
[340446738,1729260647060,-196.685843,0.00014968,2]
[340446739,1729260647070,-151.0,0.00014968,2]
[340446740,1729260647080,-259.367136,0.00014968,2]
[340446741,1729260647090,-151.0,0.00014968,2]
[340446742,1729260647100,-151.0,0.00014968,2]
[340446743,1729260647110,-151.0,0.00014968,2]
[340446744,1729260647120,-151.0,0.00014968,2]
[340446745,1729260647130,-151.0,0.00014968,2]
[340446746,1729260647140,-151.0,0.00014968,2]
[340446747,1729260647150,-151.0,0.00014968,2]
[340446748,1729260647160,-151.0,0.00014968,2]
[340446749,1729260647170,-151.0,0.00014968,2]
[340446750,1729260647180,-151.0,0.00014968,2]
[340446751,1729260647190,-151.0,0.00014968,2]
[340446752,1729260647200,-17180.0734802,0.00014969,2]
[340446753,1729260647210,-151.0,0.00014969,2]
[340446754,1729260647220,-151.0,0.00014969,2]
[340446755,1729260647230,-151.0,0.00014969,2]
[340446756,1729260647240,-151.0,0.00014969,2]
[340446757,1729260647250,-151.0,0.00014969,2]
[340446758,1729260647260,-503.99187716,0.00014973,2]
[340446759,1729260647270,-500.0,0.00014973,2]
[340446760,1729260647279,-500.0,0.00014973,2]
[340446761,1729260647289,-502.10079398,0.00014973,2]
[340446762,1729260647300,-500.0,0.00014973,2]
[340446763,1729260647311,-500.0,0.00014973,2]
[340446764,1729260647322,-502.98618079,0.00014973,2]
[340446765,1729260647332,-500.0,0.00014973,2]
[340446766,1729260647342,-312.6223274,0.00014973,2]
[340446767,1729260647352,-172.29076722,0.00014973,2]
[340446768,1729260647363,-500.0,0.00014973,2]
[340446769,1729260647372,-265.970146,0.00014978,2]
[340446770,1729260647383,-265.970146,0.00014978,2]
[340446771,1729260647393,-151.0,0.00014978,2]
[340446772,1729260647403,-151.0,0.00014978,2]
[340446773,1729260647413,-151.0,0.00014978,2]
[340446774,1729260647422,-151.0,0.00014978,2]
[340446775,1729260647433,-151.0,0.00014978,2]
[340446776,1729260647443,-151.0,0.00014978,2]
[340446777,1729260647454,-151.0,0.00014978,2]
[340446778,1729260647464,-151.0,0.00014978,2]
[340446779,1729260647474,-151.0,0.00014978,2]
[340446780,1729260647484,-151.0,0.00014978,2]
[340446781,1729260647495,-151.0,0.00014978,2]
[340446782,1729260647505,-151.0,0.00014978,2]
[340446783,1729260647515,-151.0,0.00014978,2]
[340446784,1729260647525,-151.0,0.00014978,2]
[340446785,1729260647535,-151.0,0.00014978,2]
[340446786,1729260647543,-151.0,0.00014978,2]
[340446787,1729260647555,-151.0,0.00014978,2]
[340446788,1729260647564,-242.263949,0.00014978,2]
[340446789,1729260647576,-242.263949,0.00014978,2]
[340446790,1729260647586,-242.263949,0.00014978,2]
[340446791,1729260647596,-242.263949,0.00014978,2]
[340446792,1729260647606,-151.0,0.00014978,2]
[340446793,1729260647616,-196.685843,0.00014978,2]
[340446794,1729260647626,-196.685843,0.00014978,2]
[340446795,1729260647636,-151.0,0.00014978,2]
[340446796,1729260647646,-151.0,0.00014978,2]
[340446797,1729260647656,-151.0,0.00014978,2]
[340446798,1729260647665,-151.0,0.00014978,2]
[340446799,1729260647675,-151.0,0.00014978,2]
[340446800,1729260647685,-151.0,0.00014978,2]
[340446801,1729260647695,-26561.4264994,0.00014979,2]
[340446802,1729260647705,-151.0,0.00014979,2]
[340446803,1729260647715,-151.0,0.00014979,2]
[340446804,1729260647726,-201.83487,0.00014979,2]
[340446805,1729260647736,-201.83487,0.00014979,2]
[340446806,1729260647746,-201.83487,0.00014979,2]
[340446807,1729260647757,-201.83487,0.00014979,2]
[340446808,1729260647767,-151.0,0.00014979,2]
[340446809,1729260647777,-151.0,0.00014979,2]
[340446810,1729260647788,-265.970146,0.00014979,2]
[340446811,1729260647798,-265.970146,0.00014979,2]
[340446812,1729260647809,-151.0,0.00014979,2]
[340446813,1729260647819,-151.0,0.00014979,2]
[340446814,1729260647828,-151.0,0.00014979,2]
[340446815,1729260647839,-151.0,0.00014979,2]
[340446816,1729260647849,-151.0,0.00014979,2]
[340446817,1729260647858,-151.0,0.00014979,2]
[340446818,1729260647868,-151.0,0.00014979,2]
[340446819,1729260647878,-151.0,0.00014979,2]
[340446820,1729260647889,-242.263949,0.00014979,2]
[340446821,1729260647899,-242.263949,0.00014979,2]
[340446822,1729260647909,-151.0,0.00014979,2]
[340446823,1729260647920,-151.0,0.00014979,2]
[340446824,1729260647929,-196.685843,0.00014979,2]
[340446825,1729260647939,-196.685843,0.00014979,2]
[340446826,1729260647950,-196.685843,0.00014979,2]
[340446827,1729260647960,-196.685843,0.00014979,2]
[340446828,1729260647970,-151.0,0.00014979,2]
[340446829,1729260647980,-151.0,0.00014979,2]
[340446830,1729260647990,-241.049519,0.00014979,2]
[340446831,1729260648000,-151.0,0.00014979,2]
[340446832,1729260648010,-151.0,0.00014979,2]
[340446833,1729260648020,-398.91957782,0.00014988,2]
[340446834,1729260648031,-500.0,0.00014988,2]
[340446835,1729260648041,-329.99543979,0.00014988,2]
[340446836,1729260648051,-500.0,0.00014988,2]
[340446837,1729260648061,-502.85013076,0.00014988,2]
[340446838,1729260648071,-398.28935132,0.00014988,2]
[340446839,1729260648081,-500.0,0.00014988,2]
[340446840,1729260648091,-286.619269,0.00014988,2]
[340446841,1729260648101,-265.970146,0.00014988,2]
[340446842,1729260648111,-265.970146,0.00014988,2]
[340446843,1729260648121,-151.0,0.00014988,2]
[340446844,1729260648131,-151.0,0.00014988,2]
[340446845,1729260648140,-151.0,0.00014988,2]
[340446846,1729260648150,-151.0,0.00014988,2]
[340446847,1729260648160,-2146.42872088,0.00014988,2]
[340446848,1729260648170,-2336.46640436,0.00014988,2]
[340446849,1729260648180,-34360.1469604,0.00014989,2]
[340446850,1729260648190,-26561.4264994,0.00014989,2]
[340446851,1729260648200,-189.07731,0.00014989,2]
[340446852,1729260648211,-201.83487,0.00014989,2]
[340446853,1729260648221,-201.83487,0.00014989,2]
[340446854,1729260648232,-201.83487,0.00014989,2]
[340446855,1729260648244,-201.83487,0.00014989,2]
[340446856,1729260648255,-265.970146,0.00014989,2]
[340446857,1729260648266,-265.970146,0.00014989,2]
[340446858,1729260648276,-265.970146,0.00014989,2]
[340446859,1729260648286,-265.970146,0.00014989,2]
[340446860,1729260648298,-151.0,0.00014989,2]
[340446861,1729260648309,-151.0,0.00014989,2]
[340446862,1729260648319,-151.0,0.00014989,2]
[340446863,1729260648329,-151.0,0.00014989,2]
[340446864,1729260648339,-151.0,0.00014989,2]
[340446865,1729260648350,-151.0,0.00014989,2]
[340446866,1729260648359,-151.0,0.00014989,2]
[340446867,1729260648370,-151.0,0.00014989,2]
[340446868,1729260648381,-151.0,0.00014989,2]
[340446869,1729260648391,-151.0,0.00014989,2]
[340446870,1729260648401,-151.0,0.00014989,2]
[340446871,1729260648412,-151.0,0.00014989,2]
[340446872,1729260648423,-242.263949,0.00014989,2]
[340446873,1729260648433,-242.263949,0.00014989,2]
[340446874,1729260648444,-242.263949,0.00014989,2]
[340446875,1729260648454,-242.263949,0.00014989,2]
[340446876,1729260648466,-151.0,0.00014989,2]
[340446877,1729260648476,-151.0,0.00014989,2]
[340446878,1729260648486,-196.685843,0.00014989,2]
[340446879,1729260648497,-196.685843,0.00014989,2]
[340446880,1729260648508,-196.685843,0.00014989,2]
[340446881,1729260648519,-196.685843,0.00014989,2]
[340446882,1729260648530,-151.0,0.00014989,2]
[340446883,1729260648540,-151.0,0.00014989,2]
[340446884,1729260648551,-151.0,0.00014989,2]
[340446885,1729260648562,-151.0,0.00014989,2]
[340446886,1729260648572,-151.0,0.00014989,2]
[340446887,1729260648583,-151.0,0.00014989,2]
[340446888,1729260648593,-151.0,0.00014989,2]
[340446889,1729260648604,-151.0,0.00014989,2]
[340446890,1729260648613,-1366.09016152,0.00014997,2]
[340446891,1729260649164,-7257.40064716,0.00014997,2]
[340446892,1729260649174,-150.0,0.00014998,2]
[340446893,1729260649185,-51613.21423446,0.00014999,2]
[340446894,1729260649195,-201.83487,0.00014999,2]
[340446895,1729260649205,-201.83487,0.00014999,2]
[340446896,1729260649215,-265.970146,0.00014999,2]
[340446897,1729260649225,-265.970146,0.00014999,2]
[340446898,1729260649235,-151.0,0.00014999,2]
[340446899,1729260649245,-151.0,0.00014999,2]
[340446900,1729260649255,-151.0,0.00014999,2]
[340446901,1729260649266,-151.0,0.00014999,2]
[340446902,1729260649277,-290.363632,0.00014999,2]
[340446903,1729260649288,-151.0,0.00014999,2]
[340446904,1729260649299,-242.263949,0.00014999,2]
[340446905,1729260649312,-242.263949,0.00014999,2]
[340446906,1729260649321,-151.0,0.00014999,2]
[340446907,1729260649332,-196.685843,0.00014999,2]
[340446908,1729260649342,-196.685843,0.00014999,2]
[340446909,1729260649351,-151.0,0.00014999,2]
[340446910,1729260649361,-169.11952,0.00014999,2]
[340446911,1729260649371,-151.0,0.00014999,2]
[340446912,1729260649380,-4754.0606597,0.00015,5]
[340446913,1729260649390,-503.96403049,0.00015,2]
[340446914,1729260649400,-184.28798,0.00015,2]
[340446915,1729260649411,-500.0,0.00015,2]
[340446916,1729260649422,-1000.98673372,0.00015,2]
[340446917,1729260649432,-2096.839701,0.0001501,2]
[340446918,1729260649442,-151.0,0.00015015,2]
[340446919,1729260649453,-293.366794,0.00015015,2]
[340446920,1729260649463,-26561.4264994,0.00015049,2]
[340446921,1729260649473,-6025.64760698,0.00015059,2]
[340446922,1729260649485,-959.6634797,0.00015059,2]
[340446923,1729260649495,-409.2965203,0.00015073,2]
[340446996,1729260935122,1111.0,0.00026289,120]
[340446997,1729260955044,227.0,0.00027,60]
[340447017,1729261245105,2511.3,0.00027,60]
[340447036,1729261741681,1111.0,0.00026785,120]
[340447090,1729261832122,-170.2161,0.0001367,2]
[340447091,1729261832132,-250.0,0.00013699,2]
[340447092,1729261832142,-700.91262084,0.00013721,2]
[340447093,1729261832155,-192.77068616,0.00013721,2]
[340447094,1729261832164,-170.2161,0.00013759,2]
[340447095,1729261832174,-170.2161,0.00013848,2]
[340447096,1729261832184,-170.2161,0.00013937,2]
[340447097,1729261832194,-170.2161,0.00014026,2]
[340447098,1729261832203,-1293.76,0.000141,2]
[340447099,1729261832213,-170.2161,0.00014115,2]
[340447100,1729261832223,-170.2161,0.00014204,2]
[340447101,1729261832232,-170.2161,0.00014293,2]
[340447102,1729261832242,-170.2161,0.00014382,2]
[340447103,1729261832252,-893.683307,0.00014406,2]
[340447104,1729261832261,-300.0,0.00014683,2]
[340447105,1729261832272,-300.0,0.00014683,2]
[340447106,1729261832282,-527.0,0.00014684,2]
[340447107,1729261832291,-1157.0,0.00014684,2]
[340447108,1729261832301,-65.64234536,0.00014684,2]
[340447144,1729261840195,-1205.17078076,0.00014684,2]
[340447206,1729262233627,3101.41,0.00027,60]
[340447211,1729262552929,6015.29123638,0.00027,60]
[340447283,1729263038527,-250.0,0.00013699,2]
[340447284,1729263038538,-297.894435,0.00013968,2]
[340447285,1729263038548,-461.65666301,0.000142,2]
[340447286,1729263038766,-702.73333699,0.000142,2]
[340447287,1729263038776,-466.89109149,0.000142,2]
[340447288,1729263038787,-133.10890851,0.000142,2]
[340447289,1729263038799,-300.0,0.0001435,2]
[340447290,1729263038810,-300.0,0.0001435,2]
[340447291,1729263038823,-1229.17040405,0.00014351,2]
[340447322,1729263043533,-3469.65996457,0.00014351,2]
[340447323,1729263043546,-4188.03921112,0.00014351,2]
[340447324,1729263043556,-153.11,0.00014454,2]
[340447325,1729263043566,-535.187,0.00014454,2]
[340447326,1729263043576,-250.0,0.00014454,2]
[340447327,1729263043587,-297.894435,0.00014653,2]
[340447328,1729263043597,-72.67070625,0.0001478,2]
[340447334,1729263046370,-527.32929375,0.0001478,2]
[340447335,1729263046381,-166.27183719,0.000149,2]
[340447336,1729263046390,-200.0,0.0001492,2]
[340447337,1729263046400,-477.27886906,0.00014952,2]
[340447338,1729263046416,-22.72113094,0.00014952,2]
[340447339,1729263046425,-1000.000001,0.00015,2]
[340447340,1729263046435,-151.92,0.00015,2]
[340447341,1729263046446,-1677.4717608,0.0001501,2]
[340447343,1729263046457,-150.01,0.00015157,2]
[340447344,1729263046469,-151.0,0.000153,2]
[340447345,1729263046480,-1168.23320218,0.00015338,2]
[340447346,1729263046489,-297.894435,0.00015338,2]
[340447347,1729263046499,-1073.21436044,0.000154,2]
[340447348,1729263046511,-5000.0,0.000154,2]
[340447349,1729263046521,-5000.0,0.000154,2]
[340447350,1729263046531,-440.13540621,0.00015473,2]
[340447351,1729263046541,-289.17804008,0.00015473,2]
[340447352,1729263046551,-1677.4717608,0.0001551,2]
[340447353,1729263046561,-3711.09522169,0.00015537,2]
[340447354,1729263046571,-150.0,0.00015636,2]
[340447355,1729263046581,-231.536,0.00015637,2]
[340447356,1729263046591,-152.0,0.0001568,2]
[340447357,1729263046601,-45278.52,0.000157,2]
[340447358,1729263046611,-420.0,0.00015716,2]
[340447359,1729263046621,-404.59868086,0.00015749,2]
[340447360,1729263174077,2155.65072554,0.0001,2]
[340447397,1729263778433,800.89482421,0.00027,120]
[340447411,1729264145628,1111.0,0.00026779,120]
[340447560,1729264233263,-160.385417,0.0001081,2]
[340447562,1729264233273,-213.91757888,0.00010859,2]
[340447564,1729264233283,-160.385417,0.00011379,2]
[340447566,1729264233293,-167.4317344,0.00011873,2]
[340447568,1729264233303,-160.385417,0.00011948,2]
[340447570,1729264233314,-160.21666,0.00011962,2]
[340447572,1729264233324,-160.21666,0.00012019,2]
[340447574,1729264233334,-160.21666,0.00012076,2]
[340447576,1729264233343,-160.21666,0.00012132,2]
[340447578,1729264233353,-160.21666,0.00012189,2]
[340447580,1729264233363,-160.21666,0.00012246,2]
[340447583,1729264233374,-160.21666,0.00012302,2]
[340447585,1729264233384,-160.21666,0.00012359,2]
[340447587,1729264233395,-160.21666,0.00012416,2]
[340447589,1729264233408,-160.21666,0.00012472,2]
[340447591,1729264233419,-160.21666,0.00012529,2]
[340447593,1729264233429,-160.21666,0.00012586,2]
[340447595,1729264233440,-3768.88993525,0.00012843,2]
[340447597,1729264233449,-300.0,0.00012844,2]
[340447599,1729264233459,-300.0,0.00012844,2]
[340447601,1729264233470,-642.87743425,0.00012844,2]
[340447603,1729264233481,-6323.18745321,0.00012845,2]
[340447767,1729264240536,-184.6,0.00010959,2]
[340447769,1729264240547,-18556.81254679,0.00012845,2]
[340447771,1729264240557,-1708.4349659,0.00012961,2]
[340447772,1729264240568,-925.7158978,0.00013035,2]
[340447774,1729264240578,-250.0,0.00013699,2]
[340447776,1729264240589,-253.324162,0.00013699,2]
[340447777,1729264240599,-278.147691,0.00013699,2]
[340447778,1729264240609,-420.0,0.00014087,2]
[340447779,1729264240620,-420.0,0.00014128,2]
[340447780,1729264240630,-1232.41,0.000142,2]
[340447781,1729264240640,-568.45743713,0.00014251,2]
[340447782,1729264240650,-193.87866234,0.00014251,2]
[340447783,1729264240660,-278.147691,0.00014384,2]
[340447784,1729264240671,-333.002245,0.00014436,2]
[340447785,1729264240681,-222.156,0.00014463,2]
[340447786,1729264240691,-250.0,0.00014463,2]
[340447787,1729264240700,-527.0,0.0001456,2]
[340447788,1729264240711,-1807.0,0.0001456,2]
[340447789,1729264240727,-1158.0,0.0001456,2]
[340447790,1729264240739,-1006.4830564,0.0001501,2]
[340447791,1729264240750,-278.147691,0.00015068,2]
[340447792,1729264240761,-200.0,0.0001527,2]
[340447793,1729264240772,-8886.86957974,0.00015376,2]
[340447794,1729264240783,-587.0,0.00015451,2]
[340447795,1729264240793,-1006.4830564,0.0001551,2]
[340447796,1729264240804,-587.0,0.00015541,2]
[340447797,1729264240815,-154.0,0.0001568,2]
[340447798,1729264240825,-222.381,0.000157,2]
[340447799,1729264240835,-500.0,0.0001576,2]
[340447800,1729264240846,-500.0,0.0001576,2]
[340447801,1729264240857,-158.87946888,0.00015789,2]
[340447802,1729264240867,-500.0,0.0001584,2]
[340447803,1729264240877,-1000.0,0.00015878,2]
[340447804,1729264240888,-22898.1551569,0.00015878,2]
[340447805,1729264240898,-8907.8473345,0.00015878,2]
[340447806,1729264240909,-10935.6418026,0.00015878,2]
[340447807,1729264240923,-23197.4179093,0.00015878,2]
[340447808,1729264240934,-15565.1760268,0.00015879,2]
[340447809,1729264240944,-271.265248,0.00015889,2]
[340447810,1729264240954,-151.0,0.00015889,2]
[340447811,1729264240965,-151.0,0.00015889,2]
[340447812,1729264240975,-151.0,0.00015889,2]
[340447813,1729264240985,-151.0,0.00015889,2]
[340447814,1729264240996,-297.955802,0.00015889,2]
[340447815,1729264241006,-1806.928554,0.00015889,2]
[340447816,1729264241016,-1806.928554,0.00015889,2]
[340447817,1729264241026,-15565.1760268,0.00015889,2]
[340447818,1729264241038,-1207.70537502,0.00015889,2]
[340448085,1729265431844,-184.219711,0.00012739,2]
[340448086,1729265431854,-184.219711,0.00012774,2]
[340448087,1729265431864,-184.219711,0.00012809,2]
[340448089,1729265431874,-97.60238216,0.00012844,2]
[340448090,1729265431886,-86.61732884,0.00012844,2]
[340448091,1729265431896,-184.219711,0.00012879,2]
[340448092,1729265431906,-184.219711,0.00012914,2]
[340448093,1729265431916,-184.219711,0.00012949,2]
[340448094,1729265431926,-184.219711,0.00012984,2]